[Event "St. Petersburg-ch 2021"]
[Site "St. Petersburg"]
[Date "2021.03.30"]
[Round "6.1"]
[White "Usmanov, Vasily"]
[Black "Goganov, Aleksey"]
[Result "1/2-1/2"]
[ECO "A45"]
[WhiteElo "2447"]
[BlackElo "2575"]
[Annotator "ChessBase"]
[PlyCount "96"]
[EventDate "2021.03.25"]
[EventType "swiss"]
[EventCountry "RUS"]
[SourceTitle "playchess.com"]
[Source "ChessBase"]
[SourceQuality "1"]
[TimeControl "40/5400+30:1800+30"]

1. d4 {[%emt 0:00:42]} Nf6 {[%emt 0:00:00]} 2. Bg5 {[%emt 0:00:13]} e6 {[%emt 0:00:43]} 3. Nc3 {[%emt 0:06:20]} h6 {[%emt 0:03:38]} 4. Bf4 {[%emt 0:05:17]} Bb4 {[%emt 0:10:20]} 5. Qd3 {[%emt 0:01:13]} d5 {[%emt 0:04:14]} 6. a3 {[%emt 0:01:16]} Bd6 {[%emt 0:00:41]} 7. Bxd6 {[%emt 0:00:30]} cxd6 {[%emt 0:00:11]} 8. e4 {[%emt 0:11:40]} dxe4 {[%emt 0:03:02]} 9. Nxe4 {[%emt 0:00:01]} Nxe4 {[%emt 0:02:04]} 10. Qxe4 {[%emt 0:00:03]} Nd7 {[%emt 0:00:44]} 11. Nf3 {[%emt 0:04:14]} Nf6 {[%emt 0:04:03]} 12. Bb5+ {[%emt 0:01:09]} Kf8 {[%emt 0:02:25]} 13. Qe2 {[%emt 0:04:36]} Bd7 {[%emt 0:00:03]} 14. Bd3 {[%emt 0:01:56]} g6 {[%emt 0:00:40]} 15. O-O {[%emt 0:01:30]} Kg7 {[%emt 0:00:25]} 16. c4 {[%emt 0:04:15]} Re8 {[%emt 0:02:12]} 17. Rfe1 {[%emt 0:00:01]} a5 {[%emt 0:02:07]} 18. b3 {[%emt 0:00:01]} Bc6 {[%emt 0:00:28]} 19. Rad1 {[%emt 0:02:37]} Qb6 {[%emt 0:12:50]} 20. Bc2 {[%emt 0:01:39]} Qc7 {[%emt 0:00:59]} 21. Qd3 {[%emt 0:10:24]} b5 {[%emt 0:16:03]} 22. d5 {[%emt 0:19:22]} bxc4 {[%emt 0:06:26]} 23. bxc4 {[%emt 0:03:51]} exd5 {[%emt 0:01:43]} 24. Nd4 {[%emt 0:00:03]} Bd7 {[%emt 0:02:35]} 25. cxd5 {[%emt 0:00:07]} Nxd5 {[%emt 0:01:04]} 26. Bb3 {[%emt 0:02:17]} Qc3 {[%emt 0:06:08]} 27. Rxe8 {[%emt 0:07:24]} Rxe8 {[%emt 0:01:45]} 28. Nf3 {[%emt 0:02:27]} Qxd3 {[%emt 0:00:17]} 29. Rxd3 {[%emt 0:00:02]} Nf6 {[%emt 0:00:16]} 30. Rxd6 {[%emt 0:02:25]} Rb8 {[%emt 0:00:06]} 31. Nd2 {[%emt 0:01:00]} a4 {[%emt 0:04:40]} 32. Bc4 {[%emt 0:00:11]} Rb2 {[%emt 0:02:47]} 33. f3 {[%emt 0:00:12]} Rc2 {[%emt 0:02:26]} 34. Kf2 {[%emt 0:00:04]} Rc1 {[%emt 0:01:08]} 35. h4 {[%emt 0:04:50]} Ra1 {[%emt 0:01:26]} 36. Rd3 {[%emt 0:03:12]} Bf5 {[%emt 0:00:28]} 37. Re3 {[%emt 0:00:08]} Kf8 {[%emt 0:00:40]} 38. Bb5 {[%emt 0:01:14]} Nd5 {[%emt 0:05:58]} 39. Re8+ {[%emt 0:00:03]} Kg7 {[%emt 0:00:03]} 40. Bxa4 {[%emt 0:00:00]} Ra2 {[%emt 0:00:00]} 41. Ke1 {[%emt 0:04:55]} Nf4 {[%emt 0:00:55]} 42. g3 {[%emt 0:00:48]} Ra1+ {[%emt 0:08:23]} 43. Kf2 {[%emt 0:00:32]} Nd3+ {[%emt 0:00:11]} 44. Kg2 {[%emt 0:02:37]} Ra2 {[%emt 0:03:19]} 45. Re2 {[%emt 0:00:03]} Nc1 {[%emt 0:00:09]} 46. Rf2 {[%emt 0:00:08]} Nd3 {[%emt 0:00:53]} 47. Re2 {[%emt 0:00:05]} Rxa3 {[%emt 0:02:37]} 48. Bb5 {[%emt 0:01:17]} Nc5 {[%emt 0:00:16]} 1/2-1/2

[Event "St. Petersburg-ch 2021"]
[Site "St. Petersburg"]
[Date "2021.03.30"]
[Round "6.2"]
[White "Alekseev, Evgeny"]
[Black "Lobanov, Sergei"]
[Result "1-0"]
[ECO "D05"]
[WhiteElo "2619"]
[BlackElo "2516"]
[Annotator "ChessBase"]
[PlyCount "45"]
[EventDate "2021.03.25"]
[EventType "swiss"]
[EventCountry "RUS"]
[SourceTitle "playchess.com"]
[Source "ChessBase"]
[SourceQuality "1"]
[TimeControl "40/5400+30:1800+30"]

1. Nf3 {[%emt 0:03:37]} d5 {[%emt 0:01:27]} 2. e3 {[%emt 0:03:06]} c5 {[%emt 0:02:35]} 3. b3 {[%emt 0:03:47]} e6 {[%emt 0:03:24]} 4. Bb2 {[%emt 0:01:28]} Nc6 {[%emt 0:00:04]} 5. d4 {[%emt 0:08:21]} Nf6 {[%emt 0:00:57]} 6. Bd3 {[%emt 0:02:27]} b6 {[%emt 0:09:10]} 7. O-O {[%emt 0:01:58]} Bb7 {[%emt 0:01:31]} 8. Nbd2 {[%emt 0:03:56]} cxd4 {[%emt 0:05:19]} 9. exd4 {[%emt 0:01:43]} Bd6 {[%emt 0:01:47]} 10. a3 {[%emt 0:02:14]} O-O {[%emt 0:00:14]} 11. Qe2 {[%emt 0:01:38]} a5 {[%emt 0:07:40]} 12. Ne5 {[%emt 0:03:05]} Ne7 {[%emt 0:07:16]} 13. Rfe1 {[%emt 0:07:47]} Nf5 {[%emt 0:12:31]} 14. Nf1 {[%emt 0:07:04]} Ne4 {[%emt 0:11:08]} 15. Nd2 {[%emt 0:09:06]} Nxd2 {[%emt 0:09:51]} 16. Qxd2 {[%emt 0:00:08]} Ba6 {[%emt 0:00:11]} 17. c4 {[%emt 0:07:41]} dxc4 {[%emt 0:06:52]} 18. bxc4 {[%emt 0:00:57]} Rc8 {[%emt 0:07:28]} 19. Rac1 {[%emt 0:00:57]} Bxe5 {[%emt 0:02:55]} 20. Rxe5 {[%emt 0:00:14]} Qh4 {[%emt 0:02:39]} 21. d5 {[%emt 0:05:09]} Nd6 {[%emt 0:00:54]} 22. g3 {[%emt 0:09:14]} Qd8 {[%emt 0:02:41]} 23. Qf4 {[%emt 0:15:53]} 1-0

[Event "St. Petersburg-ch 2021"]
[Site "St. Petersburg"]
[Date "2021.03.30"]
[Round "6.3"]
[White "Levin, Evgeny A."]
[Black "Golikov, Daniil"]
[Result "1/2-1/2"]
[ECO "D12"]
[WhiteElo "2502"]
[BlackElo "2229"]
[Annotator "ChessBase"]
[PlyCount "104"]
[EventDate "2021.03.25"]
[EventType "swiss"]
[EventCountry "RUS"]
[SourceTitle "playchess.com"]
[Source "ChessBase"]
[SourceQuality "1"]
[TimeControl "40/5400+30:1800+30"]

1. d4 {[%emt 0:07:29]} d5 {[%emt 0:00:00]} 2. c4 {[%emt 0:00:11]} c6 {[%emt 0:00:00]} 3. Nf3 {[%emt 0:00:07]} Nf6 {[%emt 0:00:00]} 4. e3 {[%emt 0:00:06]} Bf5 {[%emt 0:00:00]} 5. Nc3 {[%emt 0:00:22]} e6 {[%emt 0:00:00]} 6. Nh4 {[%emt 0:00:04]} Bg6 {[%emt 0:00:00]} 7. Nxg6 {[%emt 0:00:37]} hxg6 {[%emt 0:00:00]} 8. Bd3 {[%emt 0:01:35]} Nbd7 {[%emt 0:00:38]} 9. O-O {[%emt 0:03:14]} Bd6 {[%emt 0:00:15]} 10. h3 {[%emt 0:00:05]} O-O {[%emt 0:00:06]} 11. Qc2 {[%emt 0:00:47]} dxc4 {[%emt 0:00:06]} 12. Bxc4 {[%emt 0:00:05]} c5 {[%emt 0:00:09]} 13. dxc5 {[%emt 0:00:43]} Nxc5 {[%emt 0:00:06]} 14. Rd1 {[%emt 0:00:09]} Qe7 {[%emt 0:00:06]} 15. Bd2 {[%emt 0:01:24]} a6 {[%emt 0:00:04]} 16. Rac1 {[%emt 0:04:24]} Rac8 {[%emt 0:00:07]} 17. Be1 {[%emt 0:06:03]} Rc7 {[%emt 0:12:35]} 18. Be2 {[%emt 0:06:03]} Nce4 {[%emt 0:06:03]} 19. Qb1 {[%emt 0:03:34]} Nxc3 {[%emt 0:01:07]} 20. Bxc3 {[%emt 0:01:10]} Nd5 {[%emt 0:02:06]} 21. Be1 {[%emt 0:02:23]} Rxc1 {[%emt 0:06:32]} 22. Rxc1 {[%emt 0:11:50]} Bb4 {[%emt 0:01:13]} 23. Bf3 {[%emt 0:00:59]} Bxe1 {[%emt 0:01:03]} 24. Rxe1 {[%emt 0:00:05]} Rd8 {[%emt 0:00:26]} 25. Rd1 {[%emt 0:03:46]} Rd7 {[%emt 0:00:40]} 26. Qe4 {[%emt 0:01:36]} Qd8 {[%emt 0:16:11]} 27. Qe5 {[%emt 0:09:57]} Qc7 {[%emt 0:05:09]} 28. Qxc7 {[%emt 0:00:34]} Rxc7 {[%emt 0:01:18]} 29. Bxd5 {[%emt 0:00:06]} exd5 {[%emt 0:00:03]} 30. b3 {[%emt 0:03:45]} Rc5 {[%emt 0:00:39]} 31. Kf1 {[%emt 0:05:45]} Kf8 {[%emt 0:00:17]} 32. Ke2 {[%emt 0:00:14]} Ke7 {[%emt 0:00:44]} 33. Rd4 {[%emt 0:00:05]} Ke6 {[%emt 0:01:03]} 34. Kd2 {[%emt 0:00:10]} a5 {[%emt 0:00:24]} 35. h4 {[%emt 0:04:22]} Rc8 {[%emt 0:01:11]} 36. a4 {[%emt 0:05:42]} b6 {[%emt 0:03:02]} 37. g3 {[%emt 0:01:08]} Rc7 {[%emt 0:01:08]} 38. Rd3 {[%emt 0:02:47]} Rc5 {[%emt 0:07:04]} 39. Rd4 {[%emt 0:11:26]} Rc7 {[%emt 0:00:09]} 40. Rd3 {[%emt 0:00:00]} Rc5 {[%emt 0:00:00]} 41. Rc3 {[%emt 0:07:48]} Ke5 {[%emt 0:03:57]} 42. f3 {[%emt 0:00:20]} d4 {[%emt 0:07:18]} 43. f4+ {[%emt 0:01:07]} Ke4 {[%emt 0:01:41]} 44. exd4 {[%emt 0:00:21]} Kxd4 {[%emt 0:00:05]} 45. Rd3+ {[%emt 0:00:23]} Ke4 {[%emt 0:00:07]} 46. Re3+ {[%emt 0:00:03]} Kd4 {[%emt 0:00:44]} 47. Re7 {[%emt 0:06:24]} Rf5 {[%emt 0:00:47]} 48. Rd7+ {[%emt 0:05:52]} Ke4 {[%emt 0:04:09]} 49. Ke2 {[%emt 0:00:47]} Rf6 {[%emt 0:01:11]} 50. Re7+ {[%emt 0:04:23]} Kd4 {[%emt 0:00:06]} 51. Kd2 {[%emt 0:08:58]} Rf5 {[%emt 0:00:16]} 52. Rb7 {[%emt 0:01:17]} Rf6 {[%emt 0:00:25]} 1/2-1/2

[Event "St. Petersburg-ch 2021"]
[Site "St. Petersburg"]
[Date "2021.03.30"]
[Round "6.4"]
[White "Saveliev, Alexei"]
[Black "Shubin, Kirill"]
[Result "1/2-1/2"]
[ECO "B29"]
[WhiteElo "2358"]
[BlackElo "2466"]
[Annotator "ChessBase"]
[PlyCount "80"]
[EventDate "2021.03.25"]
[EventType "swiss"]
[EventCountry "RUS"]
[SourceTitle "playchess.com"]
[Source "ChessBase"]
[SourceQuality "1"]
[TimeControl "40/5400+30:1800+30"]

1. e4 {[%emt 0:09:22]} c5 {[%emt 0:00:00]} 2. Nf3 {[%emt 0:00:22]} Nf6 {[%emt 0:00:00]} 3. Nc3 {[%emt 0:02:17]} d5 {[%emt 0:00:00]} 4. exd5 {[%emt 0:13:35]} Nxd5 {[%emt 0:00:16]} 5. d4 {[%emt 0:00:57]} Nxc3 {[%emt 0:06:35]} 6. bxc3 {[%emt 0:00:01]} g6 {[%emt 0:00:39]} 7. h4 {[%emt 0:16:52]} Bg7 {[%emt 0:06:12]} 8. h5 {[%emt 0:00:07]} Bg4 {[%emt 0:01:36]} 9. Bc4 {[%emt 0:06:08]} gxh5 {[%emt 0:04:13]} 10. Qd3 {[%emt 0:04:44]} Nc6 {[%emt 0:08:53]} 11. Ng5 {[%emt 0:11:12]} e6 {[%emt 0:00:06]} 12. Nxf7 {[%emt 0:00:09]} Kxf7 {[%emt 0:00:05]} 13. f3 {[%emt 0:00:02]} Ne5 {[%emt 0:04:55]} 14. dxe5 {[%emt 0:00:18]} Qxd3 {[%emt 0:00:04]} 15. cxd3 {[%emt 0:01:20]} Bf5 {[%emt 0:03:13]} 16. Bf4 {[%emt 0:06:33]} a6 {[%emt 0:02:11]} 17. O-O-O {[%emt 0:11:05]} Rhd8 {[%emt 0:03:05]} 18. g4 {[%emt 0:07:55]} hxg4 {[%emt 0:05:06]} 19. fxg4 {[%emt 0:00:01]} Bg6 {[%emt 0:01:15]} 20. Rhf1 {[%emt 0:00:22]} Re8 {[%emt 0:00:08]} 21. Bh6+ {[%emt 0:00:12]} Kg8 {[%emt 0:00:07]} 22. Bxg7 {[%emt 0:00:03]} Kxg7 {[%emt 0:00:07]} 23. Rf6 {[%emt 0:00:03]} Bf7 {[%emt 0:00:32]} 24. a4 {[%emt 0:01:14]} Rab8 {[%emt 0:04:27]} 25. Rdf1 {[%emt 0:02:24]} Bg8 {[%emt 0:00:51]} 26. a5 {[%emt 0:00:35]} b5 {[%emt 0:00:06]} 27. axb6 {[%emt 0:01:07]} Rxb6 {[%emt 0:00:04]} 28. Kd2 {[%emt 0:00:22]} a5 {[%emt 0:00:07]} 29. Ra1 {[%emt 0:01:30]} Ra8 {[%emt 0:00:07]} 30. Kc2 {[%emt 0:01:01]} Bf7 {[%emt 0:01:01]} 31. Ra2 {[%emt 0:01:50]} a4 {[%emt 0:01:29]} 32. Rf1 {[%emt 0:01:04]} Be8 {[%emt 0:00:07]} 33. Rb1 {[%emt 0:00:49]} Rab8 {[%emt 0:00:31]} 34. Rxb6 {[%emt 0:00:39]} Rxb6 {[%emt 0:48:52]} 35. Rb2 Rxb2+ {[%emt 0:00:00]} 36. Kxb2 {[%emt 0:00:02]} Bd7 {[%emt 0:00:00]} 37. d4 {[%emt 0:00:41]} cxd4 {[%emt 0:00:00]} 38. cxd4 {[%emt 0:00:02]} Kg6 {[%emt 0:00:00]} 39. Bd3+ {[%emt 0:00:05]} Kg5 {[%emt 0:00:00]} 40. Bxh7 {[%emt 0:00:00]} Kxg4 {[%emt 0:00:00]} 1/2-1/2

[Event "St. Petersburg-ch 2021"]
[Site "St. Petersburg"]
[Date "2021.03.30"]
[Round "6.5"]
[White "Epishin, Vladimir"]
[Black "Donskov, Anatoly"]
[Result "1-0"]
[ECO "D20"]
[WhiteElo "2527"]
[BlackElo "2286"]
[Annotator "ChessBase"]
[PlyCount "91"]
[EventDate "2021.03.25"]
[EventType "swiss"]
[EventCountry "RUS"]
[SourceTitle "playchess.com"]
[Source "ChessBase"]
[SourceQuality "1"]
[TimeControl "40/5400+30:1800+30"]

1. d4 {[%emt 0:00:00]} d5 {[%emt 0:00:00]} 2. c4 {[%emt 0:04:12]} dxc4 {[%emt 0:00:59]} 3. e4 {[%emt 0:02:23]} Nf6 {[%emt 0:01:22]} 4. e5 {[%emt 0:01:06]} Nd5 {[%emt 0:00:15]} 5. Bxc4 {[%emt 0:00:40]} Nb6 {[%emt 0:00:08]} 6. Bb3 {[%emt 0:00:56]} Nc6 {[%emt 0:00:07]} 7. Ne2 {[%emt 0:04:25]} Bf5 {[%emt 0:00:25]} 8. Nbc3 {[%emt 0:01:36]} e6 {[%emt 0:00:10]} 9. Be3 {[%emt 0:05:03]} Qd7 {[%emt 0:00:13]} 10. O-O {[%emt 0:02:54]} O-O-O {[%emt 0:00:07]} 11. Na4 {[%emt 0:04:59]} Nd5 {[%emt 0:11:57]} 12. Nec3 {[%emt 0:09:07]} Nxe3 {[%emt 0:05:17]} 13. fxe3 {[%emt 0:00:03]} Kb8 {[%emt 0:01:06]} 14. Bc2 {[%emt 0:07:51]} Be7 {[%emt 0:26:50]} 15. Kh1 {[%emt 0:03:49]} Bxc2 {[%emt 0:03:25]} 16. Qxc2 {[%emt 0:04:44]} f6 {[%emt 0:00:23]} 17. exf6 {[%emt 0:00:56]} gxf6 {[%emt 0:00:31]} 18. a3 {[%emt 0:01:55]} Rhg8 {[%emt 0:04:33]} 19. b4 {[%emt 0:04:01]} f5 {[%emt 0:01:09]} 20. Rad1 {[%emt 0:02:38]} Bd6 {[%emt 0:03:06]} 21. e4 {[%emt 0:02:43]} Qg7 {[%emt 0:06:39]} 22. Nb5 {[%emt 0:00:42]} fxe4 {[%emt 0:02:18]} 23. Qxe4 {[%emt 0:01:06]} a6 {[%emt 0:09:02]} 24. Nxd6 {[%emt 0:00:37]} Rxd6 {[%emt 0:01:55]} 25. Nc5 {[%emt 0:00:28]} Rxd4 {[%emt 0:02:01]} 26. Rxd4 Qxd4 {[%emt 0:00:02]} 27. Qxh7 {[%emt 0:03:20]} Qg4 {[%emt 0:04:31]} 28. Qe4 {[%emt 0:00:19]} Qxe4 {[%emt 0:00:09]} 29. Nxe4 {[%emt 0:00:07]} Nd4 {[%emt 0:00:21]} 30. h3 {[%emt 0:01:01]} b6 {[%emt 0:00:50]} 31. g4 {[%emt 0:00:40]} Kb7 {[%emt 0:00:23]} 32. Kg2 {[%emt 0:00:15]} Rh8 {[%emt 0:03:32]} 33. Rh1 {[%emt 0:14:47]} Kc6 {[%emt 0:00:29]} 34. h4 {[%emt 0:00:06]} Kd5 {[%emt 0:00:36]} 35. Ng3 {[%emt 0:01:07]} c5 {[%emt 0:01:07]} 36. bxc5 {[%emt 0:00:04]} bxc5 {[%emt 0:00:01]} 37. h5 {[%emt 0:00:22]} c4 {[%emt 0:06:39]} 38. g5 {[%emt 0:00:05]} e5 {[%emt 0:01:07]} 39. g6 {[%emt 0:00:57]} Ne6 {[%emt 0:00:17]} 40. Rd1+ {[%emt 0:00:00]} Kc6 {[%emt 0:00:00]} 41. Kf3 {[%emt 0:01:47]} c3 {[%emt 0:13:40]} 42. Rc1 {[%emt 0:02:33]} Kd5 {[%emt 0:00:36]} 43. Rxc3 {[%emt 0:00:11]} Rf8+ {[%emt 0:06:38]} 44. Ke3 {[%emt 0:01:01]} Ng5 {[%emt 0:06:27]} 45. g7 {[%emt 0:03:25]} Rb8 {[%emt 0:02:14]} 46. Nf5 {[%emt 0:00:59]} 1-0

[Event "St. Petersburg-ch 2021"]
[Site "St. Petersburg"]
[Date "2021.03.30"]
[Round "6.6"]
[White "Askerov, Marat"]
[Black "Lesovoi, Evgenij"]
[Result "1-0"]
[ECO "A60"]
[WhiteElo "2351"]
[BlackElo "2347"]
[Annotator "NA"]
[PlyCount "61"]
[EventDate "2021.03.25"]
[EventType "swiss"]
[EventCountry "RUS"]
[SourceTitle "playchess.com"]
[Source "ChessBase"]
[SourceQuality "1"]
[TimeControl "40/5400+30:1800+30"]

1. d4 {[%emt 0:00:00]} Nf6 {[%emt 0:02:09]} 2. c4 {[%emt 0:00:00]} e6 {[%emt 0:00:11]} 3. g3 {[%emt 0:00:00]} c5 {[%emt 0:03:09]} 4. d5 {[%emt 0:01:24]} exd5 {[%emt 0:01:23]} 5. cxd5 {[%emt 0:00:02]} b5 {[%emt 0:02:21]} 6. Nf3 {[%emt 0:00:06]} d6 {[%emt 0:10:02]} 7. e4 {[%emt 0:00:17]} a6 {[%emt 0:01:50]} 8. a4 {[%emt 0:00:08]} Nxe4 {[%emt 0:08:55]} 9. axb5 {[%emt 0:02:52]} Be7 {[%emt 0:04:53]} 10. bxa6 {[%emt 0:00:39]} O-O {[%emt 0:03:10]} 11. a7 {[%emt 0:00:03]} Nd7 {[%emt 0:02:08]} 12. Bd3 {[%emt 0:00:08]} Nef6 {[%emt 0:01:45]} 13. O-O {[%emt 0:00:08]} Bb7 {[%emt 0:03:00]} 14. Nc3 {[%emt 0:00:22]} Nb6 {[%emt 0:03:11]} 15. Nh4 {[%emt 0:17:23]} Nfxd5 {[%emt 0:12:18]} 16. Nf5 {[%emt 0:10:10]} Bf6 {[%emt 0:15:40]} 17. Nb5 {[%emt 0:18:25]} Qd7 {[%emt 0:06:32]} 18. Nfxd6 {[%emt 0:11:58]} Bc6 {[%emt 0:04:19]} 19. Bf5 {[%emt 0:10:06]} Qd8 {[%emt 0:00:06]} 20. Qb3 {[%emt 0:03:01]} Be7 {[%emt 0:03:19]} 21. Rd1 {[%emt 0:09:00]} Bxd6 {[%emt 0:06:57]} 22. Nxd6 {[%emt 0:00:06]} Qe7 {[%emt 0:00:04]} 23. Be3 {[%emt 0:05:30]} Qxd6 {[%emt 0:02:16]} 24. Qxb6 {[%emt 0:00:53]} Qf6 {[%emt 0:00:01]} 25. Rxd5 {[%emt 0:03:10]} Bxd5 {[%emt 0:00:37]} 26. Qxf6 {[%emt 0:00:04]} gxf6 {[%emt 0:00:02]} 27. Bxc5 {[%emt 0:00:09]} Rfe8 {[%emt 0:00:58]} 28. Bh3 {[%emt 0:04:22]} Re2 {[%emt 0:00:37]} 29. b4 {[%emt 0:01:49]} Rae8 {[%emt 0:01:01]} 30. Be3 {[%emt 0:00:15]} Rb2 {[%emt 0:01:18]} 31. Bg2 {[%emt 0:00:47]} 1-0

[Event "St. Petersburg-ch 2021"]
[Site "St. Petersburg"]
[Date "2021.03.31"]
[Round "7.1"]
[White "Goganov, Aleksey"]
[Black "Epishin, Vladimir"]
[Result "1/2-1/2"]
[ECO "C10"]
[WhiteElo "2575"]
[BlackElo "2527"]
[Annotator "ChessBase"]
[PlyCount "81"]
[EventDate "2021.03.25"]
[EventType "swiss"]
[EventCountry "RUS"]
[SourceTitle "playchess.com"]
[Source "ChessBase"]
[SourceQuality "1"]
[TimeControl "40/5400+30:1800+30"]

1. e4 {[%emt 0:00:00]} e6 {[%emt 0:00:00]} 2. d4 {[%emt 0:00:00]} d5 {[%emt 0:00:00]} 3. Nc3 {[%emt 0:00:00]} dxe4 {[%emt 0:00:00]} 4. Nxe4 {[%emt 0:00:00]} Bd7 {[%emt 0:00:06]} 5. Nf3 {[%emt 0:00:00]} Bc6 {[%emt 0:00:05]} 6. Bd3 {[%emt 0:00:07]} Nd7 {[%emt 0:00:06]} 7. O-O {[%emt 0:09:35]} Ngf6 {[%emt 0:00:45]} 8. Ng3 {[%emt 0:00:14]} Be7 {[%emt 0:04:36]} 9. b3 {[%emt 0:05:49]} O-O {[%emt 0:07:44]} 10. c4 {[%emt 0:01:08]} Bxf3 {[%emt 0:08:20]} 11. Qxf3 {[%emt 0:00:20]} c5 {[%emt 0:06:36]} 12. Bb2 {[%emt 0:01:25]} cxd4 {[%emt 0:00:18]} 13. Bxd4 {[%emt 0:00:06]} Qc7 {[%emt 0:00:30]} 14. Rfe1 {[%emt 0:10:48]} Rfd8 {[%emt 0:00:52]} 15. Bb2 {[%emt 0:02:07]} Nf8 {[%emt 0:02:03]} 16. Rad1 {[%emt 0:06:08]} Rd7 {[%emt 0:01:03]} 17. Bb1 {[%emt 0:04:55]} Rad8 {[%emt 0:02:34]} 18. Rxd7 {[%emt 0:02:31]} Rxd7 {[%emt 0:00:33]} 19. Nf1 {[%emt 0:08:45]} b6 {[%emt 0:04:40]} 20. Rd1 {[%emt 0:00:59]} Rxd1 {[%emt 0:04:35]} 21. Qxd1 {[%emt 0:00:04]} N8d7 {[%emt 0:00:10]} 22. Nd2 {[%emt 0:02:19]} Bc5 {[%emt 0:09:44]} 23. Qe2 {[%emt 0:00:14]} Qd6 {[%emt 0:01:02]} 24. g3 {[%emt 0:02:06]} h5 {[%emt 0:05:23]} 25. Qd3 {[%emt 0:01:54]} Qxd3 {[%emt 0:00:56]} 26. Bxd3 {[%emt 0:00:04]} Kf8 {[%emt 0:00:40]} 27. h3 {[%emt 0:01:03]} g6 {[%emt 0:00:21]} 28. Kf1 {[%emt 0:00:55]} Ke7 {[%emt 0:00:18]} 29. Nf3 {[%emt 0:00:20]} a5 {[%emt 0:00:19]} 30. Bc2 {[%emt 0:07:27]} Nb8 {[%emt 0:01:56]} 31. Ne5 {[%emt 0:00:06]} Nfd7 {[%emt 0:00:29]} 32. Nd3 {[%emt 0:00:09]} Bd6 {[%emt 0:00:06]} 33. Kg2 {[%emt 0:04:50]} Na6 {[%emt 0:00:27]} 34. f3 {[%emt 0:00:31]} Nb4 {[%emt 0:01:58]} 35. Bb1 {[%emt 0:00:09]} Nxd3 {[%emt 0:00:09]} 36. Bxd3 {[%emt 0:00:04]} f5 {[%emt 0:01:22]} 37. Bc1 {[%emt 0:00:22]} Ne5 {[%emt 0:02:06]} 38. Bc2 {[%emt 0:01:46]} Nc6 {[%emt 0:00:05]} 39. g4 {[%emt 0:00:37]} hxg4 {[%emt 0:00:07]} 40. hxg4 {[%emt 0:00:00]} Bc5 {[%emt 0:00:00]} 41. Bg5+ {[%emt 0:00:30]} 1/2-1/2

[Event "St. Petersburg-ch 2021"]
[Site "St. Petersburg"]
[Date "2021.03.31"]
[Round "7.3"]
[White "Shubin, Kirill"]
[Black "Levin, Evgeny A."]
[Result "1-0"]
[ECO "C10"]
[WhiteElo "2466"]
[BlackElo "2502"]
[Annotator "ChessBase"]
[PlyCount "87"]
[EventDate "2021.03.25"]
[EventType "swiss"]
[EventCountry "RUS"]
[SourceTitle "playchess.com"]
[Source "ChessBase"]
[SourceQuality "1"]
[TimeControl "40/5400+30:1800+30"]

1. e4 {[%emt 0:00:00]} e6 {[%emt 0:06:19]} 2. d4 {[%emt 0:00:00]} d5 {[%emt 0:00:05]} 3. Nc3 {[%emt 0:00:00]} Nf6 {[%emt 0:00:06]} 4. Bg5 {[%emt 0:00:00]} dxe4 {[%emt 0:00:35]} 5. Nxe4 {[%emt 0:00:00]} Nbd7 {[%emt 0:00:05]} 6. Nf3 {[%emt 0:00:00]} h6 {[%emt 0:00:04]} 7. Nxf6+ {[%emt 0:00:00]} Nxf6 {[%emt 0:00:08]} 8. Be3 {[%emt 0:00:04]} Bd6 {[%emt 0:00:45]} 9. Bd3 {[%emt 0:02:30]} b6 {[%emt 0:01:10]} 10. Ne5 {[%emt 0:07:08]} O-O {[%emt 0:01:05]} 11. Qf3 {[%emt 0:03:34]} Nd5 {[%emt 0:00:36]} 12. Bd2 {[%emt 0:11:57]} Qh4 {[%emt 0:01:13]} 13. c4 {[%emt 0:10:56]} Nb4 {[%emt 0:17:52]} 14. Be4 {[%emt 0:18:28]} Rb8 {[%emt 0:18:55]} 15. g3 {[%emt 0:02:53]} Qd8 {[%emt 0:10:46]} 16. Qb3 {[%emt 0:13:26]} Bxe5 {[%emt 0:17:11]} 17. dxe5 {[%emt 0:00:24]} Qd4 {[%emt 0:02:44]} 18. f3 {[%emt 0:00:05]} Na6 {[%emt 0:00:24]} 19. Qc3 {[%emt 0:02:32]} Rd8 {[%emt 0:08:56]} 20. Qxd4 {[%emt 0:08:56]} Rxd4 {[%emt 0:00:05]} 21. b3 {[%emt 0:00:37]} Bb7 {[%emt 0:02:01]} 22. Bxb7 {[%emt 0:00:29]} Rxb7 {[%emt 0:00:03]} 23. O-O-O {[%emt 0:00:31]} c5 {[%emt 0:02:26]} 24. Bc3 {[%emt 0:01:04]} Rdd7 {[%emt 0:00:04]} 25. a3 {[%emt 0:01:11]} Kf8 {[%emt 0:00:12]} 26. Kc2 {[%emt 0:00:40]} Ke8 {[%emt 0:01:19]} 27. g4 {[%emt 0:00:57]} Nb8 {[%emt 0:01:29]} 28. h4 {[%emt 0:00:22]} Nc6 {[%emt 0:00:37]} 29. h5 {[%emt 0:00:30]} a6 {[%emt 0:01:16]} 30. f4 {[%emt 0:00:56]} Ne7 {[%emt 0:00:51]} 31. Rd6 {[%emt 0:02:44]} f5 {[%emt 0:03:51]} 32. g5 {[%emt 0:04:02]} Rxd6 {[%emt 0:01:38]} 33. exd6 {[%emt 0:00:03]} Nc6 {[%emt 0:01:02]} 34. gxh6 {[%emt 0:01:23]} gxh6 {[%emt 0:00:04]} 35. Rg1 {[%emt 0:00:07]} Rh7 {[%emt 0:00:41]} 36. Rg6 {[%emt 0:01:54]} Nd8 {[%emt 0:00:24]} 37. Rg8+ {[%emt 0:01:29]} Kd7 {[%emt 0:00:03]} 38. Be5 {[%emt 0:00:05]} a5 {[%emt 0:01:18]} 39. Kd3 {[%emt 0:01:15]} Nc6 {[%emt 0:00:12]} 40. Ra8 {[%emt 0:00:00]} Nxe5+ {[%emt 0:00:00]} 41. fxe5 {[%emt 0:00:16]} Kc6 {[%emt 0:00:51]} 42. Rc8+ {[%emt 0:00:16]} Kb7 {[%emt 0:00:03]} 43. Re8 {[%emt 0:00:11]} Kc6 {[%emt 0:00:06]} 44. Rxe6 {[%emt 0:38:05]} 1-0